bitfinex-derivatives/quotes_ETHF0:USTF0_20250927
["timestamp","ask_amount","ask_price","bid_price","bid_amount"]
[1758939720163,0.52880896,4011.3,4011.2,0.68108727]
[1758939720370,0.73960896,4011.3,4011.2,0.68108727]
[1758939720764,0.00240896,4011.3,4011.2,0.90628727]
[1758939722274,0.00240896,4011.3,4011.2,2.31330116]
[1758939724668,0.4443,4012.0,4011.9,0.87345]
[1758939724872,0.3171,4012.0,4011.9,2.31031389]
[1758939725273,0.6536,4012.0,4011.9,2.31031389]
[1758939725685,0.65663902,4012.0,4011.9,2.31031389]
[1758939725874,0.65663902,4012.0,4011.9,2.08511389]
[1758939726272,0.65663902,4012.0,4011.9,0.6781]
[1758939727880,0.87423902,4012.0,4011.9,0.6781]
[1758939728076,0.32013902,4012.0,4011.9,0.9035]
[1758939728274,0.00303902,4012.0,4011.9,2.31051389]
[1758939728677,0.31273902,4012.0,4011.9,2.31051389]
[1758939729879,0.86733902,4012.0,4011.6,3.2078]
[1758939730187,0.7401,4011.3,4011.2,0.21278727]
[1758939730374,0.7401,4011.3,4011.2,0.46578727]
[1758939730777,0.7401,4011.3,4011.2,0.25598727]
[1758939731183,0.84892509,4011.3,4011.2,0.25598727]
[1758939731484,0.84892509,4011.3,4011.2,0.46578727]
[1758939731676,0.84892509,4011.3,4011.2,0.21278727]
[1758939731876,0.84892509,4011.3,4011.2,0.46578727]
[1758939732874,0.84892509,4011.3,4011.2,0.21278727]
[1758939733082,0.84892509,4011.3,4011.2,0.46578727]
[1758939739382,0.84892509,4011.3,4011.2,0.25598727]
[1758939740184,0.84892509,4011.3,4011.2,0.00298727]
[1758939740385,0.84892509,4011.3,4011.2,0.25598727]
[1758939740684,0.84892509,4011.3,4011.2,0.68558727]
[1758939741390,0.84892509,4011.3,4011.2,0.47828727]
[1758939745293,0.84892509,4011.3,4011.2,0.25598727]
[1758939745793,0.84892509,4011.3,4011.2,0.47828727]
[1758939747793,9.50514509,4011.3,4011.2,0.00298727]
[1758939747994,10.02828623,4011.3,4011.2,0.00298727]
[1758939748294,4.57986623,4011.3,4011.2,0.25598727]
[1758939756399,5.71074789,4011.3,4011.2,0.25598727]
[1758939756799,4.57986623,4011.3,4011.2,0.25598727]
[1758939757000,5.71074789,4011.3,4011.2,0.25598727]
[1758939757903,5.71074789,4011.3,4011.2,0.00298727]
[1758939759102,4.57986623,4011.3,4011.2,0.00298727]
[1758939764205,4.57986623,4011.3,4011.2,0.20868727]
[1758939764400,4.57986623,4011.3,4011.2,0.00298727]
[1758939764707,4.57986623,4011.3,4011.2,0.25598727]
[1758939765711,4.57986623,4011.3,4011.2,0.00298727]
[1758939766002,4.57986623,4011.3,4011.2,0.25598727]
[1758939766899,4.57986623,4011.3,4011.2,0.00298727]
[1758939767107,5.71074789,4011.3,4011.2,0.25598727]
[1758939767398,5.71074789,4011.3,4011.2,0.00298727]
[1758939776208,4.57986623,4011.3,4011.2,0.00298727]
[1758939783310,4.57986623,4011.3,4011.2,1.56646893]
[1758939783513,4.57986623,4011.3,4011.2,0.43558727]
[1758939783708,4.57986623,4011.3,4011.2,0.20868727]
[1758939784808,4.57986623,4011.3,4011.2,0.43558727]
[1758939785015,4.57986623,4011.3,4011.2,0.66088727]
[1758939785406,4.57957868,4011.3,4011.2,0.43558727]
[1758939785904,4.5808492,4011.3,4011.2,0.43558727]
[1758939786912,4.5808492,4011.3,4011.2,0.20868727]
[1758939787115,4.5808492,4011.3,4011.2,0.00298727]
[1758939788715,4.5808492,4011.3,4011.2,0.25498727]
[1758939789413,4.5808492,4011.3,4011.2,0.00298727]
[1758939793315,1.21186,4010.9,4010.8,0.252]
[1758939793617,2.97569086,4010.9,4010.8,0.252]
[1758939794318,2.97569086,4010.9,4010.8,0.25378773]
[1758939795320,0.8984,4010.0,4009.9,3.65637]
[1758939795614,1.00849561,4010.0,4009.9,5.47125166]
[1758939795817,1.00849561,4010.0,4009.9,5.70155166]
[1758939796416,1.00849561,4010.0,4009.9,5.70412781]
[1758939797521,0.11009561,4010.0,4009.9,10.70412781]
[1758939798018,0.11009561,4010.0,4009.9,10.90791235]
[1758939798919,3.7525,4010.9,4010.8,0.88047]
[1758939799115,4.27570824,4010.9,4010.8,1.13247]
[1758939799313,4.49440824,4010.9,4010.8,1.13247]
[1758939800114,4.49440824,4010.9,4010.8,0.4738]
[1758939801425,4.49438324,4010.9,4010.8,0.4738]
[1758939801724,1.28658324,4010.9,4010.8,0.4738]
[1758939802123,0.5447,4010.9,4010.8,2.04518166]
[1758939802723,0.5447,4010.9,4010.8,1.81488166]
[1758939803435,0.3282,4010.9,4010.8,2.04518166]
[1758939804018,0.3282,4011.3,4010.9,0.2303]
[1758939804230,0.7634,4011.3,4011.2,0.432]
[1758939804420,1.28658339,4011.3,4011.2,0.432]
[1758939807826,1.06788339,4011.3,4011.2,0.6623]
[1758939808029,0.5447,4011.3,4011.2,0.6623]
[1758939808428,0.7634,4011.3,4011.2,0.432]
[1758939808630,0.7634,4011.3,4011.2,0.684]
[1758939808826,0.7634,4011.3,4011.2,0.432]
[1758939809033,0.135,4011.0,4010.9,1.13088166]
[1758939809233,0.6797,4011.0,4010.9,1.81488166]
[1758939809533,0.6797,4011.0,4010.9,2.49364166]
[1758939810936,0.78833137,4011.0,4010.9,2.49364166]
[1758939812534,0.78833137,4011.0,4010.9,2.77179213]
[1758939813525,1.00703137,4011.0,4010.9,1.13246]
[1758939813726,0.57183137,4011.0,4010.9,1.36276]
[1758939813927,0.78833137,4011.0,4010.9,1.36276]
[1758939815025,0.57183137,4011.0,4010.9,1.36276]
[1758939815222,0.78833137,4011.0,4010.9,1.11076]
[1758939815434,0.78833137,4011.0,4010.9,2.77179213]
[1758939815934,0.44837,4011.7,4011.0,0.1284]
[1758939816235,0.88357,4011.7,4011.6,0.7436]
[1758939816435,0.88357,4011.7,4011.6,0.9956]
[1758939817736,0.4352,4011.7,4011.6,0.9956]
[1758939817932,0.7634,4011.7,4011.6,0.9956]
[1758939818232,0.5447,4011.7,4011.6,2.40463213]
[1758939818428,0.7634,4011.7,4011.6,2.40463213]
[1758939818629,0.7634,4011.7,4011.6,1.19707808]
[1758939819235,0.7634,4011.7,4011.6,0.9956]
[1758939820942,0.7634,4011.7,4011.6,1.19316067]
[1758939823829,3.21083902,4012.0,4011.9,0.44835]
[1758939824033,3.21083902,4012.0,4011.9,2.85068213]
[1758939825039,0.00303902,4012.0,4011.9,6.05848213]
[1758939831341,0.22063902,4012.0,4011.9,5.80648213]
[1758939831547,0.55323902,4012.0,4011.9,6.05848213]
[1758939832042,0.90023902,4012.0,4011.9,3.4144]
[1758939832247,0.90023902,4012.0,4011.9,3.4598]
[1758939834148,0.90023902,4012.0,4011.9,3.6664]
[1758939834350,0.90023902,4012.0,4011.9,3.9762]
[1758939834749,0.90023902,4012.0,4011.9,4.2011]
[1758939835045,0.00303902,4012.0,4011.9,5.61013213]
[1758939837255,0.00303902,4012.0,4011.9,5.35813213]
[1758939837442,0.00303902,4012.0,4011.9,5.61013213]
[1758939843450,3.2078,4012.5,4012.0,0.44834]
[1758939843747,3.4254,4013.0,4012.9,1.18954]
[1758939843950,3.4254,4013.0,4012.9,1.44154]
[1758939844151,0.2176,4013.0,4012.9,1.44154]
[1758939844342,0.7694,4013.3,4013.2,1.1895]
[1758939844545,0.77248263,4013.3,4013.2,0.9951752]
[1758939852856,0.00308263,4013.3,4013.2,2.40420733]
[1758939858756,5.75608263,4013.3,4013.2,0.0018752]
[1758939858954,5.75608263,4013.3,4013.2,0.2538752]
[1758939859561,5.75608263,4013.3,4013.2,0.9959752]
[1758939859562,0.75608263,4013.3,4013.2,0.9959752]
[1758939859858,0.00308263,4013.3,4013.2,2.40500733]
[1758939864962,0.22918263,4013.3,4013.2,0.7912752]
[1758939865156,0.75608263,4013.3,4013.2,0.0018752]
[1758939865461,0.75608263,4013.3,4013.2,0.2538752]
[1758939865853,0.75608263,4013.3,4013.2,0.9959752]
[1758939866454,0.22918263,4013.3,4013.2,0.9959752]
[1758939866862,0.00308263,4013.3,4013.2,0.9959752]
[1758939871858,0.75608263,4013.3,4013.2,0.9959752]
[1758939872657,0.75608263,4013.3,4013.2,2.12555974]
[1758939877673,0.75608263,4013.3,4013.2,1.87355974]
[1758939877873,0.75608263,4013.3,4013.2,2.12555974]
[1758939878073,0.22918263,4013.3,4013.2,2.12555974]
[1758939878269,0.00308263,4013.3,4013.2,2.12555974]
[1758939880875,0.22918263,4013.3,4013.2,2.12555974]
[1758939881969,0.54028263,4013.3,4013.2,2.12555974]
[1758939882874,0.22918263,4013.3,4013.2,2.12555974]
[1758939883178,0.00308263,4013.3,4013.2,2.12555974]
[1758939887477,0.54068263,4013.3,4013.2,2.12555974]
[1758939891884,0.54068263,4013.3,4013.2,1.87355974]
[1758939892086,0.76168263,4013.3,4013.2,0.7439752]
[1758939892286,0.76168263,4013.3,4013.2,0.9959752]
[1758939892482,1.28585038,4013.3,4013.2,0.9959752]
[1758939895189,0.52725038,4013.3,4013.2,2.12555974]
[1758939896288,0.00308263,4013.3,4013.2,2.12555974]
[1758939896892,0.00308263,4013.3,4013.2,0.9959752]
[1758939899794,3.2078,4013.8,4013.7,1.19365]
[1758939900091,3.2078,4013.8,4013.7,2.57523454]
[1758939900589,3.2103085,4013.8,4013.7,2.57523454]
[1758939901090,3.4233085,4013.8,4013.7,2.57523454]
[1758939901293,4.49284617,4013.8,4013.7,2.12708454]
[1758939902788,4.49284617,4013.8,4013.4,1.43868454]
[1758939902993,4.49284617,4013.8,4013.5,0.70017]
[1758939902994,0.434,4013.6,4013.5,0.70017]
[1758939903195,0.7586,4013.6,4013.5,0.66767]
[1758939903388,0.434,4013.4,4013.3,0.66768]
[1758939903591,0.7586,4013.4,4013.3,0.91968]
[1758939903895,0.7586,4013.4,4013.3,1.22878]
[1758939904093,0.7586,4013.4,4013.3,1.44568]
[1758939904694,0.7586,4013.4,4013.3,0.9975]
[1758939906094,1.2820694,4013.4,4013.3,0.2195]
[1758939906295,1.2820694,4013.4,4013.3,0.252]
[1758939907094,1.28205461,4013.4,4013.3,0.252]
[1758939907895,1.40564461,4013.4,4013.2,0.0018752]
[1758939908100,0.7636,4013.4,4013.3,0.252]
[1758939908398,1.28702664,4013.4,4013.3,0.252]
[1758939909491,1.73521664,4013.4,4013.2,0.0018752]
[1758939909797,1.21179,4013.4,4013.3,0.252]
[1758939910002,4.9429971,4013.4,4013.3,0.252]
[1758939910396,4.4948071,4013.4,4013.3,0.252]
[1758939910596,4.4948071,4013.4,4013.3,1.0084]
[1758939911000,4.1652071,4013.4,4013.3,1.0084]
[1758939911197,3.2078,4013.4,4013.3,1.0084]
[1758939911505,3.4159,4013.4,4013.3,1.0084]
[1758939912002,0.2081,4013.4,4013.3,1.0084]
[1758939912605,0.3296,4013.6,4013.5,0.2074]
[1758939912900,0.7696,4013.6,4013.5,1.18847]
[1758939913201,1.29288524,4013.6,4013.5,1.44047]
[1758939913701,0.7696,4013.6,4013.5,1.44047]
[1758939913999,0.7696,4013.6,4013.5,0.90757]
[1758939914698,0.7696,4013.6,4013.5,1.21787]
[1758939917001,0.7696,4013.6,4013.5,1.44047]
[1758939921397,3.2103085,4013.8,4013.7,0.44815]
[1758939921590,3.95142273,4013.8,4013.7,2.31803454]
[1758939921905,4.26122273,4013.8,4013.7,2.31803454]
[1758939922201,0.5302085,4013.8,4013.7,0.7403]
[1758939922389,3.9601085,4013.8,4013.7,0.7403]
[1758939923093,3.4282085,4013.8,4013.7,0.7403]
[1758939923894,0.2204085,4013.8,4013.7,0.7403]
[1758939925905,0.5302085,4013.8,4013.7,0.7403]
[1758939926205,0.2204085,4013.8,4013.7,0.7403]
[1758939926504,0.0025085,4013.8,4013.7,0.7403]
[1758939928006,0.5302085,4013.8,4013.7,0.7403]
[1758939928308,0.5302085,4013.8,4013.7,1.86988454]
[1758939930810,0.2204085,4013.8,4013.7,1.86988454]
[1758939931016,0.0025085,4013.8,4013.7,1.86988454]
[1758939931611,0.0025085,4013.8,4013.7,2.12188454]
[1758939932710,0.0025085,4013.8,4013.7,2.39929066]
[1758939933611,3.2078,4014.8,4014.7,1.18834]
[1758939933612,3.7355,4014.8,4014.7,1.18834]
[1758939933812,4.48031398,4014.8,4014.7,0.9923]
[1758939934012,0.7498,4014.2,4014.1,0.9658]
[1758939934215,0.7498,4014.2,4014.1,0.2074]
[1758939934408,0.7498,4013.9,4013.8,0.75843]
[1758939934711,0.7498,4013.9,4013.8,0.252]
[1758939939708,0.7498,4013.9,4013.6,0.3103]
[1758939939909,0.1307,4014.0,4013.7,0.252]
[1758939939910,0.5277,4013.8,4013.7,0.252]
[1758939940111,0.7498,4013.8,4013.7,0.252]
[1758939943417,0.7805,4013.8,4013.7,0.252]
[1758939945917,1.30243459,4013.8,4013.7,0.252]
[1758939948020,1.30243459,4013.8,4013.7,0.4738]
[1758939948220,3.96201809,4014.2,4014.1,0.5411]
[1758939948423,4.48394706,4014.2,4014.1,0.7931]
[1758939948726,4.48394706,4014.2,4014.1,0.252]
[1758939949223,4.48394706,4014.2,4013.8,0.3193]
[1758939949417,4.48394706,4014.2,4013.5,0.1314]
[1758939949418,1.33112,4014.0,4013.9,0.70012]
[1758939949615,1.85304897,4014.0,4013.9,0.70012]
[1758939949816,1.06442897,4014.0,4012.8,1.12061]
[1758939950017,0.883,4013.5,4013.4,0.98928]
[1758939950217,1.40492897,4013.5,4013.4,1.24128]
[1758939951525,1.40492897,4013.5,4013.4,0.70018]
[1758939952027,1.40492897,4013.5,4013.4,1.24128]
[1758939952322,1.27372897,4013.5,4013.4,1.45758]
[1758939952523,1.40492897,4013.5,4013.4,1.45758]
[1758939953229,0.883,4013.5,4013.4,1.45758]
[1758939953620,1.404836,4013.5,4013.4,1.45758]
[1758939954829,1.404836,4013.5,4013.2,0.3211752]
[1758939955027,0.93311317,4013.4,4013.3,0.252]
[1758939955216,1.72179317,4013.4,4013.2,0.0018752]
[1758939955421,1.27361317,4013.3,4013.2,0.0018752]
[1758939955725,1.27361317,4013.3,4013.2,0.2538752]
[1758939957114,1.27361317,4013.3,4013.2,0.7020752]
[1758939957524,1.27361317,4013.3,4013.2,1.2431752]
[1758939957825,0.5468,4013.3,4013.2,1.4594752]
[1758939958019,3.65595,4013.7,4013.2,1.4594752]
[1758939958020,0.5468,4013.6,4013.5,1.20556]
[1758939958226,1.27335847,4013.6,4013.5,1.20556]
[1758939958828,1.27335847,4013.6,4013.5,0.7574]
[1758939959015,1.38102847,4013.6,4013.4,0.44818]
[1758939959318,1.40455847,4013.5,4013.4,0.44818]
[1758939959515,1.40455847,4013.5,4013.4,0.98928]
[1758939960931,1.40455847,4013.5,4013.4,0.44818]
[1758939961629,1.40455847,4013.5,4013.4,0.98928]
[1758939961825,1.40455847,4013.5,4013.2,0.0018752]
[1758939962026,0.7518,4013.3,4013.2,0.0018752]
[1758939962227,1.27335847,4013.3,4013.2,0.0018752]
[1758939969729,4.48115847,4013.3,4013.2,0.0018752]
[1758939970638,4.73315847,4013.3,4013.2,0.0018752]
[1758939976047,4.48115847,4013.3,4013.2,0.0018752]
[1758939976244,4.48115847,4013.3,4013.2,0.5262752]
[1758939978840,4.48115847,4013.3,4013.2,0.7394752]
[1758939980143,4.48115847,4013.3,4013.2,0.5262752]
[1758939980339,4.48115847,4013.3,4013.2,0.0018752]
[1758939981945,4.48067367,4013.3,4013.2,0.0018752]
[1758939982143,4.48067367,4013.3,4013.2,0.7394752]
[1758939982340,3.4233,4013.3,4013.2,5.7394752]
[1758939982640,3.4233,4013.3,4013.2,0.0018752]
[1758939982641,4.48672085,4013.3,4013.2,0.0018752]
[1758939983644,5.89371151,4013.3,4013.2,0.0018752]
[1758939991143,4.48672085,4013.3,4013.2,0.0018752]
[1758939993148,4.48672085,4013.3,4013.2,0.3193752]
[1758939993745,4.48672085,4013.3,4013.2,0.7394752]
[1758939993947,3.94442085,4013.3,4013.2,0.7394752]
[1758939994653,3.94442085,4013.3,4013.2,1.86904423]
[1758939995247,3.72892085,4013.3,4013.2,6.86904423]
[1758939996956,4.27382085,4013.3,4013.2,6.86904423]
[1758939999556,4.27382085,4013.3,4013.2,1.86904423]
[1758940002648,3.72892085,4013.3,4013.2,6.86904423]
[1758940002962,3.2078,4013.3,4013.2,5.7394752]
[1758940006158,0.7494,4013.6,4013.5,0.8795]
[1758940006357,0.7494,4013.6,4013.5,1.0057]
[1758940011262,3.2078,4013.8,4013.7,0.7537]
[1758940011463,3.72933958,4013.8,4013.7,1.88326903]
[1758940011763,3.2078,4013.8,4013.7,1.88326903]
[1758940014659,3.7326,4013.8,4013.7,1.88326903]
[1758940016464,3.9572,4013.8,4013.7,1.88326903]
[1758940017662,3.9572,4013.8,4013.7,0.5396]
[1758940017867,0.7494,4013.5,4013.4,2.11734903]
[1758940018068,0.7494,4013.5,4013.4,2.36934903]
[1758940018662,0.7494,4013.5,4013.4,0.5396]
[1758940018869,0.7494,4013.3,4013.2,0.0018752]
[1758940019167,0.7494,4013.3,4013.2,0.2538752]
[1758940020066,0.7494,4013.3,4013.2,1.0075752]
[1758940025177,0.7494,4013.3,4013.2,0.2538752]
[1758940025471,1.27150837,4013.3,4013.2,0.2538752]
[1758940025871,1.27150837,4013.3,4013.2,0.0018752]
[1758940026074,1.27150837,4013.3,4013.2,0.2538752]
[1758940029273,4.47930837,4013.3,4013.2,0.2538752]
[1758940029576,10.6088774,4013.3,4013.2,0.0018752]
[1758940030762,9.47930837,4013.3,4013.2,0.0018752]
[1758940030961,10.6088774,4013.3,4013.2,0.0018752]
[1758940034767,4.47930837,4013.3,4013.2,0.7707752]
[1758940035466,3.2078,4013.3,4013.2,0.7707752]
[1758940036083,3.2078,4013.3,4013.2,5.7707752]
[1758940038479,3.2078,4013.3,4013.2,6.0227752]
[1758940039167,0.7556,4013.7,4013.6,0.4452]
[1758940039371,1.27784191,4013.7,4013.6,1.0209]
[1758940039981,1.27784191,4013.7,4013.6,0.252]
[1758940040582,0.52224191,4013.7,4013.6,0.252]
[1758940040783,0.74824191,4013.7,4013.6,2.15046903]
[1758940042582,0.52224191,4013.7,4013.6,2.15046903]
[1758940043078,1.06754191,4013.7,4013.6,2.15046903]
[1758940044682,1.27784191,4013.7,4013.6,2.15046903]
[1758940045884,1.27784191,4013.7,4013.6,1.0209]
[1758940047182,1.27784191,4013.7,4013.6,2.15046903]
[1758940048482,1.27784191,4013.7,4013.6,1.89846903]
[1758940048682,1.27784191,4013.7,4013.6,2.15046903]
[1758940052687,1.27784191,4013.7,4013.6,1.0209]
[1758940052886,1.27784191,4013.7,4013.6,0.4705]
[1758940053090,1.27784191,4013.7,4013.6,0.252]
[1758940053285,0.7556,4013.4,4013.2,0.0018752]
[1758940053488,1.20378,4013.4,4013.3,0.252]
[1758940053788,1.72625442,4013.4,4013.3,0.252]
[1758940057485,1.72625442,4013.4,4013.3,0.4705]
[1758940057692,1.72625442,4013.4,4013.3,0.7942]
[1758940060992,1.72625442,4013.4,4013.3,0.4705]
[1758940061289,1.72625442,4013.4,4013.3,0.252]
[1758940061484,1.72625442,4013.4,4013.2,0.0018752]
[1758940061682,4.48587442,4013.3,4013.2,0.2538752]
[1758940061882,4.48587442,4013.3,4013.2,0.7960752]
[1758940062485,4.48587442,4013.3,4013.2,0.2538752]
[1758940078904,4.48587442,4013.3,4013.2,0.7861752]
[1758940079307,4.48587442,4013.3,4013.2,0.2538752]
[1758940080810,4.73787442,4013.3,4013.2,0.0018752]
[1758940081016,9.73787442,4013.3,4013.2,0.0018752]
[1758940081702,4.73787442,4013.3,4013.2,0.0018752]
[1758940082101,4.73787442,4013.3,4013.2,0.3151752]
[1758940082805,4.73787442,4013.3,4013.2,0.5341752]
[1758940083607,4.48587442,4013.3,4013.2,0.5341752]
[1758940084508,4.48587442,4013.3,4013.2,0.0018752]
[1758940084810,4.48587442,4013.3,4013.2,0.7423752]
[1758940092515,4.48587442,4013.3,4013.2,0.5341752]
[1758940097719,4.48587442,4013.3,4013.2,0.2208752]
[1758940098122,4.48587442,4013.3,4013.2,0.0018752]
[1758940103837,0.7751,4012.4,4012.3,0.5869]
[1758940104026,0.7751,4012.4,4012.3,1.0185]
[1758940104530,0.5555,4012.7,4012.6,0.87986]
[1758940104733,0.74828785,4012.7,4012.6,1.21681464]
[1758940105230,1.07918785,4012.7,4012.6,1.21681464]
[1758940108335,3.2078,4012.8,4012.6,0.88191464]
[1758940108532,3.4324,4012.8,4012.7,0.7665]
[1758940108834,4.2868991,4012.8,4012.7,0.7665]
[1758940109136,4.5064991,4012.8,4012.7,0.7665]
[1758940110835,3.9829,4012.8,4012.7,0.7665]
[1758940111534,3.7633,4012.8,4012.7,0.7665]
[1758940114134,3.9829,4012.8,4012.7,0.7665]
[1758940115435,3.9829,4012.8,4012.7,1.0185]
[1758940118543,3.9829,4012.8,4012.7,2.14833009]
[1758940119439,0.2246,4012.8,4012.7,2.14833009]
[1758940120631,0.5555,4013.0,4012.9,0.4316]
[1758940120834,0.5555,4013.0,4012.9,0.7665]
[1758940121840,0.7751,4013.0,4012.9,0.7665]
[1758940129353,0.9082,4013.0,4012.9,2.14833009]
[1758940129541,0.7751,4013.0,4012.9,2.14833009]
[1758940129849,0.5555,4013.0,4012.9,2.14833009]
[1758940130651,0.7813,4013.0,4012.9,2.14833009]
[1758940135253,0.7499,4012.8,4012.7,0.76566]
[1758940135455,0.7499,4012.8,4012.6,0.45032464]
[1758940135758,0.7499,4012.8,4012.7,0.252]
[1758940136949,0.7499,4012.8,4012.7,2.12723009]
[1758940137957,0.5241,4012.8,4012.7,2.12723009]
[1758940138147,0.2115,4012.8,4012.7,2.12723009]
[1758940138455,0.7499,4012.8,4012.7,2.12723009]
[1758940141161,0.5241,4013.1,4013.0,1.19363]
[1758940141461,0.7499,4013.1,4013.0,1.44563]
[1758940142453,0.7499,4013.1,4013.0,2.71136009]
[1758940142645,3.5204,4013.3,4013.2,0.44821]
[1758940142953,4.25547004,4013.3,4013.2,1.19361]
[1758940143147,4.48127004,4013.3,4013.2,1.19361]
[1758940149658,4.48127004,4013.3,4013.2,0.44821]
[1758940149961,4.48127004,4013.3,4013.2,0.252]
[1758940150156,0.7741,4013.2,4013.1,0.44821]
[1758940150460,1.29767004,4013.2,4013.1,0.69921]
[1758940151357,0.57534,4013.0,4012.6,0.00205464]
[1758940151556,0.7741,4012.7,4012.6,0.00205464]
[1758940151860,1.29767004,4012.7,4012.6,0.25305464]
[1758940154562,1.29767004,4012.7,4012.6,1.01335464]
[1758940155654,1.29767004,4012.7,4012.6,2.14318473]
[1758940158263,0.7741,4012.7,4012.6,2.14318473]
[1758940159662,3.7646,4013.0,4012.9,1.20854]
[1758940159870,4.28701086,4013.0,4012.9,2.14113009]
[1758940160250,4.49181086,4013.0,4012.9,2.14113009]
[1758940162563,0.3373,4013.3,4012.9,2.14113009]
[1758940162862,0.5568,4013.3,4013.2,1.89013009]
[1758940163063,1.2839905,4013.3,4013.2,1.0113]
[1758940164264,1.2839905,4013.3,4013.2,0.4714]
[1758940164465,1.2839905,4013.3,4013.2,0.251]
[1758940165066,0.2195,4013.0,4012.9,1.12983009]
[1758940165262,0.7616,4012.9,4012.8,0.98834]
[1758940165463,0.7616,4012.9,4012.8,1.23934]
[1758940165770,0.7616,4012.9,4012.8,1.45954]
[1758940171168,0.7616,4013.4,4013.3,0.4406]
[1758940171376,1.2841763,4013.4,4013.3,0.6916]
[1758940171666,1.2841763,4013.4,4013.3,1.0113]
[1758940174173,0.7616,4013.4,4013.3,1.0113]
[1758940175776,0.5568,4013.4,4013.3,1.0113]
[1758940178676,0.5568,4013.4,4013.3,2.14113009]
[1758940180583,0.5568,4013.4,4013.3,1.0113]
[1758940182282,0.2195,4013.4,4013.3,1.0113]
[1758940183183,0.5373,4013.4,4013.3,1.0113]
[1758940186287,1.05985821,4013.4,4013.3,1.0113]
[1758940190787,1.28025821,4013.4,4013.3,1.0113]
[1758940198189,0.52255821,4013.4,4013.3,1.0113]
[1758940198988,1.05945821,4013.4,4013.3,1.0113]
[1758940199189,0.52255821,4013.4,4013.3,1.0113]
[1758940200488,0.44813,4013.9,4013.8,0.4496]
[1758940200489,0.5369,4013.9,4013.8,0.4496]
[1758940200694,1.06023066,4013.9,4013.8,2.86519112]
[1758940201084,0.52333066,4013.9,4013.8,2.86519112]
[1758940201385,0.2191,4014.1,4014.0,0.57861]
[1758940201588,0.5369,4014.1,4014.0,1.33711]
[1758940201791,1.05982498,4014.1,4014.0,1.33711]
[1758940203484,0.00241809,4014.2,4014.0,1.33711]
[1758940203694,0.00241809,4014.2,4014.1,2.41705112]
[1758940203890,0.53931809,4014.2,4014.1,2.41705112]
[1758940204091,0.00241809,4014.2,4014.1,2.41705112]
[1758940204488,0.7573,4015.2,4015.1,1.20649]
[1758940204686,1.27958798,4015.2,4015.1,1.45749]
[1758940205298,0.2191,4015.2,4015.1,1.65728465]
[1758940205506,0.53927265,4015.2,4015.1,1.65728465]
[1758940206198,0.22147265,4015.2,4015.1,1.65728465]
[1758940206507,0.00237265,4015.2,4015.1,1.65728465]
[1758940208103,0.00237265,4015.2,4014.8,0.3258]
[1758940208104,0.1272,4015.0,4014.8,0.3258]
[1758940208308,0.7427,4014.9,4014.8,1.19323]
[1758940208502,0.7427,4014.9,4014.8,1.64242471]
[1758940209205,0.7427,4014.9,4014.8,1.44423]
[1758940209403,0.3263,4014.8,4014.7,3.2078]
[1758940209708,0.7427,4014.8,4014.7,3.4588]
[1758940210201,0.7427,4014.8,4014.7,3.2078]
[1758940210403,0.2076,4014.2,4014.1,3.6559]
[1758940210706,0.7427,4014.2,4014.1,4.4444]
[1758940210906,0.7427,4014.2,4014.1,3.9963]
[1758940211101,0.7427,4014.2,4013.9,0.44813]
[1758940211102,0.4164,4013.8,4013.7,0.98564]
[1758940211306,0.7427,4013.8,4013.7,0.7885]
[1758940217314,0.7427,4013.8,4013.7,1.0058]
[1758940218115,0.7427,4013.8,4013.7,2.41335112]
[1758940219008,0.2076,4013.8,4013.7,2.41335112]
[1758940219214,0.7524,4014.1,4014.0,1.33642]
[1758940219515,0.2207,4014.1,4014.0,1.58742]
[1758940219815,8.27990224,4014.1,4012.6,0.00205464]
[1758940220008,0.44826,4012.7,4012.6,0.00205464]
[1758940220318,1.85581112,4012.7,4012.6,0.00205464]
[1758940220509,7.37551375,4012.7,4012.6,0.00205464]
[1758940221214,7.37551375,4012.7,4012.0,0.1292]
[1758940221215,0.44833,4012.1,4012.0,0.1292]
[1758940221417,3.77236843,4012.1,4012.0,0.1292]
[1758940221618,4.29747626,4012.1,4012.0,0.1292]
[1758940222115,4.30018814,4012.1,4012.0,0.13241686]
[1758940223315,3.77508031,4012.1,4012.0,0.13241686]
[1758940224021,8.77508031,4012.1,4012.0,0.13241686]
[1758940224525,0.44838,4011.6,4011.5,0.4466]
[1758940224813,3.77241843,4011.6,4011.5,0.4466]
[1758940225322,3.77241843,4011.6,4011.5,0.44854703]
[1758940228916,3.77241843,4011.6,4011.5,0.67294703]
[1758940229109,3.77241843,4011.6,4011.5,0.89024703]
[1758940229310,3.32403843,4011.6,4011.5,0.89024703]
[1758940229523,3.2078,4011.6,4011.5,0.89024703]
[1758940233532,3.2078,4011.6,4011.5,2.29779815]
[1758940236531,3.2078,4011.6,4011.5,1.14224703]
[1758940236726,3.2078,4011.6,4011.5,7.54979815]
[1758940236933,0.00271188,4012.1,4012.0,0.8883]
[1758940237230,0.00271188,4012.1,4012.0,1.1403]
[1758940245331,0.00271188,4012.1,4012.0,0.6986]
[1758940246034,0.00271188,4012.1,4012.0,0.9251]
[1758940246934,0.00271188,4012.1,4012.0,1.1504]
[1758940248829,0.00271188,4012.1,4012.0,0.4466]
[1758940249034,0.53059382,4012.1,4012.0,0.4466]
[1758940249238,0.53059382,4012.1,4012.0,0.6731]
[1758940252134,5.53059382,4012.1,4012.0,0.4466]
[1758940252336,5.65356336,4012.1,4012.0,0.4466]
[1758940252937,0.44838,4011.6,4011.5,0.35764703]
[1758940253234,5.6883494,4011.6,4011.5,0.35764703]
[1758940254037,5.6883494,4011.6,4011.5,0.13114703]
[1758940254939,5.6883494,4011.6,4011.5,0.47414703]
[1758940258641,4.55803148,4011.6,4011.5,0.70064703]
[1758940260341,4.55803148,4011.6,4011.5,0.47414703]
[1758940261437,4.55803148,4011.6,4011.5,0.00194703]
[1758940261743,4.55803148,4011.6,4011.5,0.33984703]
[1758940261949,4.55803148,4011.6,4011.5,0.47414703]
[1758940264747,4.55803148,4011.6,4011.5,0.00194703]
[1758940265240,4.55803148,4011.6,4011.5,0.33984703]
[1758940265440,4.30703148,4011.6,4011.5,0.33984703]
[1758940265639,4.30703148,4011.6,4011.5,0.47414703]
[1758940265640,4.55903148,4011.6,4011.5,0.47414703]
[1758940265944,4.55903148,4011.6,4011.5,0.33984703]
[1758940266945,4.55903148,4011.6,4011.5,0.89574703]
[1758940268844,4.30703148,4011.6,4011.5,0.89574703]